bitfinex-derivatives/quotes_ETHF0:USTF0_20240907
["timestamp","ask_amount","ask_price","bid_price","bid_amount"]
[1725700696585,0.43653,2291.1,2291.0,1.11]
[1725700696788,0.45258216,2291.1,2291.0,1.11]
[1725700698177,0.43655,2291.0,2290.9,0.43655]
[1725700698489,0.43655,2291.0,2290.7,3.2078]
[1725700698490,0.43657,2290.9,2290.8,1.17558]
[1725700698784,0.39905186,2291.3,2290.9,0.43657]
[1725700698785,0.43654,2291.1,2290.9,0.43657]
[1725700698973,0.43655,2291.0,2290.9,0.43657]
[1725700699177,0.43655,2291.0,2290.8,1.17558]
[1725700699385,0.43655,2291.1,2290.9,0.43657]
[1725700700577,0.43655,2291.0,2290.9,0.43657]
[1725700701974,0.43655,2291.0,2290.8,1.17558]
[1725700702174,0.43655,2291.0,2290.8,0.739]
[1725700702388,0.43655,2291.0,2290.8,1.88402986]
[1725700702782,0.43655,2291.0,2290.8,2.32060986]
[1725700703089,0.43655,2291.0,2290.9,1.14502986]
[1725700703385,0.43655,2291.0,2290.8,2.32060986]
[1725700703788,0.43655,2291.1,2290.9,1.58159986]
[1725700704281,13.43368394,2291.0,2290.6,1.09694442]
[1725700704487,0.43665,2290.5,2290.4,1.09694442]
[1725700704688,0.43665,2290.5,2290.3,2.44442935]
[1725700704983,0.43665,2290.5,2290.3,0.7495]
[1725700705787,0.43664,2290.6,2290.3,0.7495]
[1725700706486,0.43665,2290.5,2290.3,0.7495]
[1725700708183,0.43667,2290.4,2290.3,0.7495]
[1725700708586,0.43666,2290.5,2290.3,0.7495]
[1725700708988,0.43669,2290.3,2290.1,1.69492935]
[1725700709288,1.09172,2290.3,2289.9,1.69492935]
[1725700709589,0.43674,2290.0,2289.8,2.83082935]
[1725700710388,0.43674,2290.0,2289.8,1.1359]
[1725700710781,1.52874,2289.8,2289.7,1.69492935]
[1725700711093,1.52874,2289.8,2289.5,0.7641]
[1725700711094,0.43682,2289.6,2289.5,0.7641]
[1725700711289,6.83814445,2289.9,2289.5,0.7641]
[1725700711590,0.43666,2290.5,2289.8,3.2078]
[1725700711792,0.3897,2290.6,2290.3,0.43667]
[1725700711988,0.3897,2290.6,2290.4,0.3874]
[1725700712195,0.43665,2290.5,2290.4,0.3874]
[1725700712384,3.45666,2290.5,2290.2,41.2367]
[1725700712585,3.45666,2290.5,2290.2,42.0008]
[1725700712889,0.3897,2290.6,2290.3,0.43668]
[1725700713084,0.43665,2290.5,2290.2,42.00079]
[1725700713989,0.82634,2290.6,2290.3,0.43668]
[1725700714195,0.43665,2290.5,2290.2,42.00079]
[1725700714487,0.43661,2290.7,2290.2,41.5641]
[1725700714695,0.4366,2290.8,2290.6,0.43662]
[1725700714878,0.43661,2290.7,2290.5,0.43663]
[1725700716186,0.4366,2290.8,2290.6,0.43663]
[1725700716785,0.4366,2290.8,2290.7,0.3903]
[1725700717790,0.43661,2290.7,2290.5,0.43663]
[1725700717994,0.80724,2291.1,2290.9,0.43657]
[1725700718292,0.43654,2291.1,2290.9,0.43656]
[1725700718981,0.43654,2291.1,2291.0,0.3867]
[1725700719589,0.43656,2291.0,2290.8,0.43658]
[1725700719789,0.43656,2291.0,2290.8,0.43659]
[1725700719995,0.43656,2291.0,2290.9,0.43657]
[1725700720189,0.43655,2291.1,2290.9,0.43657]
[1725700721695,0.43655,2291.0,2290.8,0.80988]
[1725700721897,0.43655,2291.0,2290.9,0.43657]
[1725700722096,0.43655,2291.0,2290.8,0.80988]
[1725700722593,0.43655,2291.1,2290.9,0.43657]
[1725700723101,0.43655,2291.0,2290.8,0.80988]
[1725700723795,0.43655,2291.0,2290.9,0.43657]
[1725700724590,0.43655,2291.0,2290.8,0.80988]
[1725700726497,1.09148,2290.8,2290.4,4.63366]
[1725700726793,1.09148,2290.8,2290.4,0.3839]
[1725700727098,0.43664,2290.6,2290.4,0.82056]
[1725700727391,0.43665,2290.5,2290.4,0.3839]
[1725700727699,0.43664,2290.6,2290.4,0.82057]
[1725700728406,0.43662,2290.7,2290.4,0.3839]
[1725700728592,0.43662,2290.7,2290.5,0.43665]
[1725700729394,0.43663,2290.6,2290.5,0.43665]
[1725700731304,0.43663,2290.6,2290.4,0.82056]
[1725700733200,0.43665,2290.5,2290.4,0.3839]
[1725700733508,1.09148,2290.8,2290.4,0.3839]
[1725700733707,4.29928,2290.8,2290.4,0.3839]
[1725700734105,0.43664,2290.6,2290.4,0.82056]
[1725700734807,4.29928,2290.8,2290.4,0.3839]
[1725700735007,0.43665,2290.6,2290.4,0.3839]
[1725700735205,0.43665,2290.5,2290.4,0.3839]
[1725700735409,0.43667,2290.4,2290.3,0.3616]
[1725700735712,0.43667,2290.4,2290.3,0.79828]
[1725700735904,0.79946,2290.5,2290.3,0.79828]
[1725700738111,0.43667,2290.4,2290.3,0.3616]
[1725700738406,0.79945,2290.5,2290.3,0.79828]
[1725700738613,0.43664,2290.6,2290.4,0.43667]
[1725700739111,0.43664,2290.6,2290.5,0.3854]
[1725700739998,0.43666,2290.5,2290.3,0.3616]
[1725700740205,0.43667,2290.4,2290.3,0.3616]
[1725700740408,0.43666,2290.5,2290.3,0.79828]
[1725700740807,0.43669,2290.3,2290.1,0.82211]
[1725700741009,0.4367,2290.3,2290.1,0.82212]
[1725700742207,0.4367,2290.3,2290.2,0.4367]
[1725700742406,0.7618,2290.4,2290.2,0.4367]
[1725700742407,1.19848,2290.4,2290.2,0.4367]
[1725700742606,0.43668,2290.3,2290.2,0.4367]
[1725700743406,4.11159,2290.6,2290.1,0.3854]
[1725700743407,3.02,2290.6,2290.1,0.3854]
[1725700743608,0.43665,2290.5,2290.4,0.43665]
[1725700743808,0.45270802,2290.5,2290.4,0.43665]
[1725700744712,0.01605802,2290.5,2290.3,0.43668]
[1725700744913,0.43666,2290.5,2290.3,0.43668]
[1725700745112,0.01605838,2290.4,2290.3,0.43668]
[1725700745524,0.45272838,2290.4,2290.3,0.43668]
[1725700745722,0.01605838,2290.4,2290.3,0.43668]
[1725700746435,0.01605838,2290.4,2290.2,0.4367]
[1725700746716,0.01605838,2290.3,2290.2,0.4367]
[1725700747115,0.39845838,2290.3,2290.2,0.4367]
[1725700749119,0.39845905,2290.3,2290.2,0.4367]
[1725700751323,0.39845903,2290.3,2290.2,0.4367]
[1725700751818,0.3824,2290.3,2290.2,0.4367]
[1725700752717,4.7488,2290.3,2289.9,3.2078]
[1725700752923,1.09181,2290.1,2289.7,1.56308]
[1725700753128,1.09181,2290.1,2289.7,1.1263]
[1725700753419,0.43678,2289.8,2289.7,1.56309]
[1725700754612,0.43677,2289.9,2289.7,1.56309]
[1725700754812,0.3803,2290.0,2289.7,1.56309]
[1725700755224,0.43678,2289.8,2289.7,0.7561]
[1725700755418,0.43678,2289.8,2289.6,0.43681]
[1725700755619,0.4368,2289.7,2289.5,0.43683]
[1725700755819,1.09191,2289.9,2289.4,1.1268]
[1725700756027,1.09191,2289.9,2289.4,1.56365]
[1725700756028,0.43682,2289.6,2289.4,1.56365]
[1725700756222,0.43684,2289.5,2289.4,0.7485]
[1725700757624,0.43686,2289.4,2289.2,0.43689]
[1725700757924,0.43686,2289.4,2289.2,0.80909]
[1725700760020,1.09229,2289.1,2288.7,1.47492935]
[1725700760226,12.1224452,2289.3,2288.2,0.3804]
[1725700760227,3.02,2288.9,2288.2,0.3804]
[1725700760422,0.43698,2288.8,2288.2,0.3804]
[1725700760623,0.43698,2288.8,2288.4,0.43704]
[1725700760929,0.437,2288.7,2288.2,0.81748]
[1725700761323,0.43701,2288.7,2288.2,0.81748]
[1725700762020,0.43701,2288.6,2288.2,0.3804]
[1725700762216,8.20525681,2288.6,2288.2,0.3804]
[1725700762422,7.76823681,2288.6,2288.2,0.81748]
[1725700762622,3.45701,2288.6,2288.2,0.81748]
[1725700762818,6.66477,2288.9,2288.2,0.3804]
[1725700763023,0.43697,2288.8,2288.3,0.43705]
[1725700763226,0.43698,2288.8,2288.3,0.43705]
[1725700763633,7.32019,2288.9,2288.2,0.3804]
[1725700763832,0.43701,2288.7,2288.2,0.81748]
[1725700764027,0.43701,2288.6,2288.2,0.3804]
[1725700764227,6.66481,2288.6,2288.2,0.3804]
[1725700764929,3.45698,2288.8,2288.3,3.2078]
[1725700765123,0.43699,2288.7,2288.3,0.43706]
[1725700765331,3.02,2288.6,2288.2,0.3804]
[1725700765634,3.45702,2288.6,2288.2,0.3804]
[1725700765824,0.43704,2288.5,2288.2,0.3804]
[1725700766529,6.66482,2288.6,2288.2,0.3804]
[1725700766835,6.66482,2288.6,2288.2,0.81748]
[1725700767338,0.43704,2288.5,2288.2,0.3804]
[1725700769832,6.2278,2288.6,2288.2,0.3804]
[1725700770036,3.64487,2288.3,2288.2,0.3804]
[1725700770543,0.43707,2288.3,2288.2,0.3804]
[1725700770833,3.02,2288.4,2288.2,0.3804]
[1725700771035,3.2078,2288.6,2288.4,0.43705]
[1725700771343,3.2078,2288.6,2288.5,0.3899]
[1725700771839,3.45699,2288.7,2288.5,0.3899]
[1725700772041,3.02,2288.7,2288.5,0.3899]
[1725700772430,0.43701,2288.6,2288.5,0.3899]
[1725700773836,3.2078,2288.7,2288.5,0.3899]
[1725700774035,3.2078,2288.7,2288.6,0.3853]
[1725700774641,11.0344,2288.7,2288.5,0.3899]
[1725700774937,6.6648,2288.7,2288.5,0.3899]
[1725700775433,6.2278,2288.7,2288.5,0.3899]
[1725700776032,6.66481,2288.7,2288.5,0.3899]
[1725700777438,0.43701,2288.6,2288.5,0.3899]
[1725700778743,0.43703,2288.5,2288.3,0.3681]
[1725700778936,0.43703,2288.5,2288.3,1.16436]
[1725700779241,0.43702,2288.6,2288.3,1.16436]
[1725700779541,0.43705,2288.4,2288.3,0.7273]
[1725700779736,3.2078,2288.7,2288.3,0.7273]
[1725700780040,0.43702,2288.6,2288.3,1.16435]
[1725700780935,0.43705,2288.4,2288.3,0.7273]
[1725700781142,3.4056,2288.6,2288.3,0.7273]
[1725700782041,0.43705,2288.4,2288.3,0.7273]
[1725700785038,3.64485,2288.4,2288.3,0.7273]
[1725700785247,0.43707,2288.3,2288.2,0.3804]
[1725700787037,0.4371,2288.2,2288.0,0.7458]
[1725700787242,0.4371,2288.2,2288.1,0.3685]
[1725700787433,6.2278,2288.4,2288.1,0.3685]
[1725700787434,0.43708,2288.3,2288.1,0.3685]
[1725700788146,0.43709,2288.2,2288.1,0.3685]
[1725700788540,0.4371,2288.1,2288.0,0.7458]
[1725700788736,0.8175,2288.1,2288.0,0.3784]
[1725700789742,0.8175,2288.1,2287.9,0.3685]
[1725700789946,0.3804,2288.1,2287.9,0.3685]
[1725700790138,0.43712,2288.0,2287.9,0.3685]
[1725700790544,3.2078,2288.1,2288.0,0.43712]
[1725700790744,3.2078,2288.1,2287.9,0.3685]
[1725700790948,3.2078,2288.1,2288.0,0.3847]
[1725700791742,0.43709,2288.2,2288.0,0.3847]
[1725700791942,0.43709,2288.2,2288.1,0.3875]
[1725700793150,6.2278,2288.4,2288.1,0.3875]
[1725700793151,0.43707,2288.3,2288.1,0.3875]
[1725700793343,0.43709,2288.2,2288.1,0.3875]
[1725700793739,0.43708,2288.3,2288.1,0.8246]
[1725700793952,0.43707,2288.3,2288.1,0.8246]
[1725700794146,0.43707,2288.3,2288.1,0.3875]
[1725700794453,0.43709,2288.2,2288.1,0.3875]
[1725700798848,0.43709,2288.2,2288.1,0.8246]
[1725700799854,0.43709,2288.2,2288.1,0.3875]
[1725700800150,0.43709,2288.2,2288.1,0.8246]
[1725700800549,0.43707,2288.3,2288.1,0.8246]
[1725700800955,0.43709,2288.2,2288.1,0.8246]
[1725700801157,6.2278,2288.4,2288.1,0.8246]
[1725700801158,0.43708,2288.3,2288.1,0.8246]
[1725700801659,3.45706,2288.4,2288.2,0.43709]
[1725700801856,3.45706,2288.4,2288.3,0.79947]
[1725700802156,3.02,2288.4,2288.3,0.79947]
[1725700802544,3.02,2288.6,2288.5,0.43702]
[1725700802747,3.45696,2288.9,2288.7,0.43699]
[1725700802948,3.45696,2288.9,2288.8,0.3624]
[1725700803158,3.45696,2288.9,2288.8,1.129]
[1725700803550,3.45696,2288.9,2288.8,0.7573]
[1725700803949,3.2078,2289.1,2289.0,0.43693]
[1725700804252,3.94076732,2289.6,2289.3,0.43686]
[1725700804449,3.45683,2289.6,2289.4,0.3624]
[1725700804757,3.64464,2289.5,2289.4,0.3624]
[1725700804959,0.43688,2289.3,2289.1,0.43691]
[1725700805159,0.43688,2289.3,2289.2,0.381]
[1725700805553,3.45688,2289.3,2289.2,0.381]
[1725700811454,3.02,2289.3,2289.2,0.381]
[1725700811856,3.45688,2289.3,2289.2,0.381]
[1725700812566,3.47294711,2289.3,2289.2,0.381]
[1725700813560,3.45688,2289.3,2289.2,0.381]
[1725700813761,3.48901469,2289.3,2289.2,0.381]
[1725700816156,3.48901469,2289.3,2288.8,0.3949]
[1725700816157,13.42013469,2289.3,2288.8,0.3949]
[1725700816358,0.43695,2288.9,2288.8,0.3949]
[1725700816562,0.45301988,2288.9,2288.8,0.3949]
[1725700817163,3.66081988,2288.9,2288.8,0.3949]
[1725700819652,3.64475,2288.9,2288.8,0.3949]
[1725700822166,3.64475,2288.9,2288.8,0.83187]
[1725700822365,3.2078,2289.2,2289.1,0.43691]
[1725700822667,3.2078,2289.2,2288.8,10.7637]
[1725700822668,0.43689,2289.2,2289.0,0.43692]
[1725700822868,0.43689,2289.2,2289.1,0.3773]
[1725700823065,0.43689,2289.2,2289.1,0.81421]
[1725700823570,0.43689,2289.3,2289.1,0.81421]
[1725700823864,0.43689,2289.3,2289.2,0.3697]
[1725700824068,0.43689,2289.3,2289.1,0.81421]
[1725700824271,0.43689,2289.2,2289.1,0.3773]
[1725700825072,0.43689,2289.2,2289.1,0.81421]
[1725700825772,4.11212,2289.5,2289.1,0.3773]
[1725700826065,4.11212,2289.5,2289.2,0.43689]
[1725700826066,3.2078,2289.3,2289.2,0.43689]
[1725700826675,0.43688,2289.3,2289.1,0.8142]
[1725700827168,0.43689,2289.2,2289.1,0.81421]
[1725700827373,3.2078,2289.4,2289.2,0.43689]
[1725700827567,0.43686,2289.4,2289.3,0.3914]
[1725700829768,3.64466,2289.4,2289.3,0.3914]
[1725700835361,0.43686,2289.4,2289.3,0.3914]
[1725700835575,3.64466,2289.4,2289.3,0.3914]
[1725700836074,4.90466,2289.4,2289.3,0.3914]
[1725700836871,0.43689,2289.2,2289.1,0.3773]
[1725700837076,0.43695,2288.9,2288.8,0.3846]
[1725700837376,0.43695,2288.9,2288.8,0.756]
[1725700837563,0.43695,2288.9,2288.8,5.1248]
[1725700839379,0.43695,2289.0,2288.8,5.56177]
[1725700839578,0.43695,2289.0,2288.8,1.19297]
[1725700839974,0.43695,2288.9,2288.8,0.756]
[1725700840477,0.43695,2288.9,2288.8,5.1248]
[1725700843993,0.43695,2288.9,2288.8,5.4956]
[1725700847077,0.46908737,2288.9,2288.8,5.4956]
[1725700847681,0.46908737,2288.9,2288.5,1.1414069]
[1725700847682,5.49332737,2288.9,2288.5,1.1414069]
[1725700847982,1.52961,2288.5,2288.4,0.3658]
[1725700848184,1.54567869,2288.5,2288.4,0.3658]
[1725700849076,1.52961,2288.5,2288.4,0.3658]
[1725700851583,0.43703,2288.5,2288.4,0.3658]
[1725700852482,1.52961,2288.5,2288.4,0.3658]
[1725700854390,0.43705,2288.4,2288.3,0.7739]
[1725700859780,0.43707,2288.3,2288.2,0.3797]
[1725700859987,0.43707,2288.3,2288.2,0.7669]
[1725700861788,0.43707,2288.3,2288.2,1.20399]
[1725700861994,3.2078,2288.6,2288.5,0.43703]
[1725700862198,0.43698,2288.8,2288.6,0.43701]
[1725700862399,0.43698,2288.8,2288.7,1.1127]
[1725700862893,1.69698,2288.8,2288.7,1.1127]
[1725700863192,1.69698,2288.8,2288.3,0.43706]
[1725700863193,0.43704,2288.5,2288.3,0.43706]
[1725700863401,0.43704,2288.5,2288.3,0.80526]
[1725700864095,0.43705,2288.4,2288.3,0.3682]
[1725700864292,0.43704,2288.5,2288.3,0.80526]
[1725700864493,0.43702,2288.6,2288.4,0.43704]
[1725700864687,0.43703,2288.5,2288.4,0.3664]
[1725700866891,0.43703,2288.5,2288.4,0.80345]
[1725700867095,0.43702,2288.6,2288.4,0.80345]
[1725700867289,1.26,2288.8,2288.4,0.80345]
[1725700867490,0.01607154,2288.7,2288.6,0.43701]
[1725700867696,0.43699,2288.7,2288.6,0.43701]
[1725700868201,0.43699,2288.8,2288.6,0.43701]
[1725700868394,0.43699,2288.7,2288.6,0.43701]
[1725700868696,0.43699,2288.7,2288.5,0.43701]
[1725700869000,0.43699,2288.7,2288.6,0.3594]
[1725700869197,4.92086179,2288.7,2288.6,0.3594]
[1725700869399,4.92086179,2288.7,2288.4,0.3664]
[1725700869400,0.43703,2288.5,2288.4,0.3664]
[1725700869902,0.43702,2288.6,2288.4,0.80345]
[1725700870202,0.43702,2288.6,2288.5,0.3594]
[1725700872495,0.45309205,2288.6,2288.5,0.3594]
[1725700872704,0.43705,2288.4,2288.3,0.3682]
[1725700873000,3.64485,2288.4,2288.3,0.3682]
[1725700873303,0.43709,2288.2,2288.1,0.7455]
[1725700873803,0.3887,2288.3,2288.1,0.7455]
[1725700873804,0.43708,2288.3,2288.1,1.1826]
[1725700874396,0.43709,2288.2,2288.1,0.7455]
[1725700877401,1.52981,2288.2,2288.1,0.3606]
[1725700877600,0.43709,2288.2,2288.1,0.3606]
[1725700881107,0.43712,2288.0,2287.9,0.3908]
[1725700881308,0.43714,2287.9,2287.8,0.3859]
[1725700881512,1.69714,2288.0,2287.8,0.3859]
[1725700881703,1.69714,2288.0,2287.8,0.82306]
[1725700882009,1.26,2288.0,2287.8,0.3859]
[1725700882611,0.43714,2287.9,2287.8,0.3859]
[1725700883205,0.43716,2287.8,2287.7,0.7387]
[1725700883409,4.90496,2287.8,2287.7,0.7387]
[1725700884707,1.26,2287.8,2287.7,0.7387]
[1725700886112,1.26,2287.9,2287.7,0.7387]
[1725700886310,3.2078,2288.1,2287.8,0.43716]
[1725700886311,0.43713,2288.0,2287.8,0.43716]
[1725700886517,0.43713,2288.0,2287.9,0.3594]
[1725700888216,4.4678,2288.1,2287.7,0.7387]
[1725700888407,0.43712,2288.0,2287.8,0.3735]
[1725700888613,4.4678,2288.1,2287.8,0.3735]
[1725700888910,0.43713,2288.0,2287.8,0.81066]
[1725700889221,4.90492,2288.1,2287.8,0.81066]
[1725700889409,0.43713,2288.0,2287.8,0.81066]
[1725700889905,0.43713,2288.0,2287.8,0.3735]
[1725700890522,0.43716,2287.8,2287.7,0.7387]
[1725700894411,1.26,2287.9,2287.7,1.17588]
[1725700894613,0.43716,2287.8,2287.7,0.7387]
[1725700895720,0.45323734,2287.8,2287.7,0.7387]
[1725700895922,0.43716,2287.8,2287.7,0.7387]
[1725700896620,0.45323725,2287.8,2287.7,0.7387]
[1725700897218,0.43716,2287.8,2287.7,1.17588]
[1725700897520,0.43716,2287.8,2287.7,0.7387]
[1725700899020,4.82443733,2287.8,2287.7,0.7387]
[1725700899220,4.04601532,2287.8,2287.6,0.43719]
[1725700899420,4.02993733,2287.8,2287.6,0.43719]
[1725700900323,3.59277733,2287.8,2287.5,0.82851]
[1725700900621,3.22387733,2287.8,2287.6,0.4372]
[1725700900923,3.66104733,2287.8,2287.6,0.4372]
[1725700901318,3.66104733,2287.8,2287.5,0.82851]
[1725700901825,0.43719,2287.7,2287.5,0.82851]
[1725700902123,1.69719,2287.7,2287.5,0.82851]
[1725700903624,1.69719,2287.7,2287.5,0.3913]
[1725700904034,1.26,2287.6,2287.4,0.7421]
[1725700904220,0.43722,2287.5,2287.4,0.7421]
[1725700904924,1.69721,2287.6,2287.4,0.7421]
[1725700905429,0.43722,2287.5,2287.4,0.7421]
[1725700906123,0.3879,2287.7,2287.4,1.17933]
[1725700906124,0.4372,2287.7,2287.4,1.17933]
[1725700906321,1.69721,2287.6,2287.4,1.17933]
[1725700907230,19.212,2287.5,2287.0,1.14310301]
[1725700907528,0.43736,2286.8,2286.0,1.06500302]
[1725700907725,0.43731,2287.0,2286.9,0.375]
[1725700908119,0.43731,2287.0,2286.6,0.3833]
[1725700908328,3.2078,2287.4,2286.8,3.2078]
[1725700908516,0.43723,2287.5,2287.0,0.43731]
[1725700908716,0.43725,2287.4,2287.1,0.7561]
[1725700908921,1.26,2287.4,2287.1,0.7561]
[1725700909325,3.64505,2287.4,2287.1,0.7561]
[1725700909527,1.69726,2287.3,2287.1,0.7561]
[1725700909724,1.26,2287.3,2286.9,0.3902]
[1725700909922,0.43729,2287.2,2287.0,0.7561]
[1725700910124,0.4373,2287.1,2287.0,0.7561]
[1725700910528,0.43729,2287.2,2287.0,0.7561]
[1725700911934,0.4373,2287.1,2287.0,0.7561]
[1725700913017,3.6451,2287.1,2287.0,0.7561]
[1725700913423,4.9051,2287.1,2287.0,0.7561]
[1725700915734,4.9051,2287.1,2287.0,0.3887]
[1725700917124,4.9051,2287.1,2287.0,0.7555]
[1725700918840,4.9051,2287.1,2287.0,0.3887]
[1725700920135,9.2779,2287.1,2287.0,0.3887]
[1725700921226,9.2779,2287.1,2287.0,0.7685]
[1725700922031,0.43731,2287.0,2286.3,1.26]
[1725700922233,3.2078,2287.1,2287.0,0.3587]
[1725700922430,4.48388419,2287.1,2285.8,6.02630477]
[1725700922625,3.2078,2286.4,2286.1,0.7385]
[1725700923124,4.4678,2286.4,2286.1,0.7385]
[1725700923630,1.26,2286.3,2286.1,0.7385]
[1725700924437,1.69745,2286.3,2286.1,0.7385]
[1725700924639,1.26,2286.3,2286.1,0.7385]
[1725700926437,9.41165968,2286.2,2285.7,0.43755]
[1725700926635,9.41165968,2286.2,2285.8,1.18694]
[1725700926636,1.26,2285.9,2285.8,1.18694]
[1725700926935,1.26,2286.2,2286.0,0.4375]
[1725700927236,1.26,2286.2,2286.1,0.3797]
[1725700927840,1.26,2286.4,2286.2,0.43747]
[1725700928144,1.26,2286.4,2286.3,0.7494]
[1725700929239,8.59109426,2286.5,2286.3,0.7494]
[1725700929434,1.26,2286.4,2286.3,0.7494]
[1725700929744,1.69743,2286.4,2286.3,0.7494]
[1725700930638,11.6336,2286.4,2285.4,7.4048]
[1725700930941,1.26,2285.9,2285.8,0.43753]
[1725700931247,1.26,2285.9,2285.4,0.7843]
[1725700931433,1.26,2285.9,2285.8,0.43754]
[1725700931631,4.4678,2285.9,2285.4,0.3944]
[1725700931834,1.26,2285.5,2285.4,0.83202]
[1725700932042,3.2078,2285.9,2285.7,0.43755]
[1725700932240,3.2078,2285.9,2285.8,1.1788]
[1725700932441,3.2078,2286.2,2286.0,0.4375]
[1725700932637,3.2078,2286.2,2285.8,1.1788]
[1725700932638,1.26,2286.1,2285.8,1.1788]
[1725700932839,3.2078,2286.2,2286.1,0.43749]
[1725700933342,3.2078,2286.2,2286.0,0.43749]
[1725700933541,1.26,2286.1,2286.0,0.43749]
[1725700934640,1.26,2286.1,2285.4,1.09406]
[1725700934839,1.26,2286.1,2286.0,0.43751]
[1725700935045,1.26,2286.1,2285.9,0.43751]
[1725700935343,1.69749,2286.1,2286.0,0.7558]
[1725700935733,6.07189,2286.1,2286.0,0.7558]
[1725700935934,1.26,2286.1,2286.0,1.19331]
[1725700936347,1.26,2286.1,2286.0,0.7558]
[1725700936844,1.26,2286.1,2286.0,1.1156]
[1725700937540,1.69749,2286.1,2286.0,1.1156]
[1725700939143,0.43752,2286.0,2285.7,0.43756]
[1725700939349,3.64533,2285.9,2285.8,1.0852]
[1725700940044,3.2078,2285.9,2285.8,1.0852]
[1725700940650,3.2078,2286.2,2286.1,0.43749]
[1725700940951,4.90528,2286.2,2285.8,1.0852]
[1725700941247,1.26,2286.0,2285.9,0.43752]
[1725700941451,1.26,2286.0,2285.9,0.43753]
[1725700941745,1.26,2286.0,2285.8,1.52274]
[1725700941950,1.26,2286.0,2285.9,0.43753]
[1725700942140,1.26,2286.0,2285.8,1.0852]
[1725700942541,1.69751,2286.0,2285.8,1.52273]
[1725700942848,1.26,2286.0,2285.9,0.43753]
[1725700943044,1.26,2286.0,2285.8,1.52273]
[1725700943246,1.69751,2286.0,2285.8,1.0852]
[1725700943450,1.69752,2286.0,2285.8,1.52274]
[1725700943648,1.26,2286.0,2285.8,1.52274]
[1725700943850,1.69751,2286.0,2285.8,1.52274]
[1725700946650,1.26,2286.0,2285.9,0.43753]
[1725700947656,1.69751,2286.0,2285.8,1.52274]
[1725700948747,0.43753,2285.9,2285.8,1.0852]
[1725700948949,0.43753,2285.9,2285.8,1.52274]
[1725700949149,1.69752,2286.0,2285.8,1.52274]
[1725700949351,0.43753,2285.9,2285.8,1.0852]
[1725700949550,1.69752,2286.0,2285.8,1.52274]
[1725700950950,4.4678,2286.0,2285.9,0.43753]
[1725700951149,4.90531,2286.0,2285.8,1.52273]
[1725700951351,4.4678,2286.0,2285.9,0.43753]
[1725700951550,4.90531,2286.0,2285.9,0.43753]
[1725700951772,4.90531,2286.0,2285.8,1.52274]
[1725700952561,9.23772493,2285.9,2284.9,4.197]
[1725700952853,1.26,2285.3,2284.9,4.197]
[1725700953055,1.26,2285.6,2285.4,0.43761]
[1725700953261,1.26,2285.6,2285.3,0.43763]
[1725700953459,1.26,2285.4,2285.3,0.43763]
[1725700953658,1.26,2285.4,2284.9,48.2048]
[1725700953659,4.4678,2285.4,2284.9,4.197]
[1725700953851,1.26,2285.2,2285.1,0.43768]
[1725700954255,1.26,2285.2,2285.1,4.376]
[1725700954450,1.26,2285.2,2285.1,4.81368]
[1725700954660,4.4678,2285.4,2285.1,4.81368]
[1725700954858,3.2078,2285.7,2285.3,0.43764]
[1725700955065,4.4678,2285.7,2285.3,0.43764]
[1725700955570,4.4678,2285.7,2285.4,1.54091]
[1725700955752,3.2078,2286.0,2285.6,0.43758]
[1725700955958,6.2378,2286.0,2285.4,4.3111]
[1725700956261,0.43747,2286.2,2285.4,4.3111]
[1725700956458,3.03,2286.1,2285.6,0.43757]
[1725700956961,6.2378,2286.1,2285.7,0.3596]
[1725700957156,6.2378,2286.1,2285.8,0.783]
[1725700957465,3.46746,2286.3,2285.8,0.783]
[1725700957664,3.46746,2286.3,2285.8,1.22054]
[1725700959867,3.2078,2286.4,2285.8,3.9908]
[1725700960158,3.2078,2286.4,2286.1,0.43747]
[1725700960366,3.2078,2286.4,2286.2,1.1332]
[1725700961759,3.2078,2286.4,2285.7,0.43756]
[1725700961963,0.43749,2286.1,2285.7,1.1332]
[1725700962457,3.64529,2286.1,2285.7,1.1332]
[1725700962659,3.64529,2286.1,2285.7,1.57076]
[1725700962970,0.43751,2286.0,2285.7,1.1332]
[1725700963177,3.6453,2286.1,2285.7,1.1332]
[1725700963663,3.2078,2286.1,2285.7,1.57075]
[1725700963868,3.64529,2286.1,2285.7,1.57075]
[1725700964371,3.64529,2286.1,2285.7,1.1332]
[1725700964666,0.43751,2286.0,2285.7,1.1332]
[1725700965067,0.43752,2286.0,2285.7,1.1332]
[1725700966372,0.43753,2285.9,2285.7,1.1332]
[1725700966671,0.79771,2286.0,2285.7,1.1332]
[1725700966969,3.6453,2286.1,2285.7,1.57076]
[1725700967670,3.6453,2286.1,2285.8,0.43754]
[1725700967671,3.2078,2286.1,2285.8,0.43754]
[1725700967968,3.64529,2286.1,2285.8,0.43754]
[1725700968172,3.2078,2286.1,2285.9,0.43752]
[1725700968576,3.2078,2286.1,2286.0,0.3628]
[1725700969874,0.43747,2286.2,2286.0,0.3628]
[1725700970969,0.43747,2286.2,2286.1,0.7389]
[1725700971368,0.43747,2286.2,2286.1,0.3662]
[1725700971562,0.43749,2286.1,2286.0,0.3628]
[1725700971763,0.43749,2286.1,2286.0,0.729]
[1725700971970,0.43749,2286.1,2285.8,0.43753]
[1725700972170,0.43751,2286.0,2285.7,2.52836875]
[1725700972378,0.4375,2286.1,2285.8,0.82044]